bitfinex-derivatives/quotes_BNBF0:USTF0_20260114
["timestamp","ask_amount","ask_price","bid_price","bid_amount"]
[1768372602803,0.75604491,938.37,936.17,0.18561881]
[1768372603102,0.75604491,938.36,936.17,0.18561881]
[1768372603305,0.75604491,938.35,936.17,0.18561881]
[1768372603504,0.75604491,938.34,936.17,0.18561881]
[1768372603706,0.75604491,938.33,936.17,0.18561881]
[1768372603907,0.75604491,938.32,936.17,0.18561881]
[1768372604203,0.75604491,938.31,936.17,0.18561881]
[1768372604403,0.75604491,938.3,936.17,0.18561881]
[1768372604602,0.75604491,938.29,936.17,0.18561881]
[1768372604800,0.19391032,939.28,936.17,0.18561881]
[1768372604801,0.75604491,938.28,936.17,0.18561881]
[1768372605007,0.75604491,938.27,936.17,0.18561881]
[1768372605203,0.75604491,938.26,936.17,0.18561881]
[1768372605406,0.75604491,938.25,936.17,0.18561881]
[1768372605601,0.75604491,938.24,936.17,0.18561881]
[1768372605806,0.75532618,938.23,936.17,0.18561881]
[1768372606005,0.75532618,938.22,936.17,0.18561881]
[1768372606204,0.75532618,938.21,936.17,0.18561881]
[1768372606506,0.75532618,938.2,936.17,0.18561881]
[1768372606703,0.75532618,938.19,936.17,0.18561881]
[1768372606904,0.75532618,938.18,936.17,0.18561881]
[1768372607106,0.75532618,938.17,936.17,0.18561881]
[1768372607301,0.75532618,938.16,936.17,0.18561881]
[1768372607505,0.75532618,938.15,936.17,0.18561881]
[1768372607803,0.75532618,938.14,936.17,0.18561881]
[1768372608004,0.75532618,938.13,936.17,0.18561881]
[1768372608303,0.75532618,938.12,936.17,0.18561881]
[1768372608503,0.75532618,938.11,936.17,0.18561881]
[1768372608708,0.75532618,938.1,936.17,0.18561881]
[1768372608909,0.75532618,938.09,936.17,0.18561881]
[1768372609109,0.75532618,938.08,936.17,0.18561881]
[1768372609310,0.75532618,938.07,936.17,0.18561881]
[1768372609610,0.75532618,938.06,936.17,0.18561881]
[1768372609910,0.75532618,938.05,936.17,0.18561881]
[1768372610106,0.75532618,938.04,936.17,0.18561881]
[1768372610411,0.75532618,938.03,936.17,0.18561881]
[1768372610607,0.75532618,938.02,936.2,1.5948419]
[1768372610810,0.75532618,938.01,936.2,1.5948419]
[1768372611011,0.75532618,938.0,936.2,1.5948419]
[1768372611211,0.75532618,937.99,936.2,1.5948419]
[1768372611413,0.75532618,937.98,936.2,1.5948419]
[1768372611714,0.75532618,937.97,936.2,1.5948419]
[1768372611908,0.75532618,937.96,936.2,1.5948419]
[1768372612111,0.75532618,937.95,936.2,1.5948419]
[1768372612315,0.75532618,937.94,936.2,1.5948419]
[1768372612513,0.75532618,937.93,936.2,1.5948419]
[1768372612712,0.75532618,937.92,936.2,1.5948419]
[1768372613013,0.75532618,937.91,936.2,1.5948419]
[1768372613215,0.75532618,937.9,936.19,1.5948419]
[1768372613416,0.75532618,937.89,936.19,1.5948419]
[1768372613615,0.75532618,937.88,936.19,1.5948419]
[1768372613814,0.75532618,937.87,936.19,1.5948419]
[1768372614015,0.75532618,937.86,936.19,1.5948419]
[1768372614215,0.75532618,937.85,936.19,1.5948419]
[1768372614418,0.75532618,937.84,936.19,1.5948419]
[1768372614619,0.75532618,937.83,936.19,1.5948419]
[1768372614815,0.75532618,937.82,936.19,1.5948419]
[1768372615018,0.75532618,937.81,936.19,1.5948419]
[1768372615216,0.75532618,937.8,936.18,1.5948419]
[1768372615416,0.75532618,937.79,936.18,1.5948419]
[1768372615721,0.75532618,937.78,936.18,1.5948419]
[1768372615917,0.75532618,937.77,936.18,1.5948419]
[1768372616121,0.75532618,937.76,936.18,1.5948419]
[1768372616318,0.75532618,937.75,936.18,1.5948419]
[1768372616514,0.75532618,937.74,936.18,1.5948419]
[1768372616714,0.75532618,937.73,936.18,1.5948419]
[1768372616915,0.75532618,937.72,936.18,1.5948419]
[1768372617115,0.75532618,937.71,936.18,1.5948419]
[1768372617315,0.75532618,937.7,936.18,1.5948419]
[1768372617616,0.75532618,937.69,936.18,1.5948419]
[1768372617916,0.75532618,937.68,936.18,1.5948419]
[1768372618117,0.75532618,937.67,936.18,1.5948419]
[1768372618317,0.75532618,937.66,936.18,1.5948419]
[1768372618516,0.75532618,937.65,936.18,1.5948419]
[1768372618716,0.75532618,937.64,936.18,1.5948419]
[1768372618917,0.75532618,937.63,936.18,1.5948419]
[1768372619116,0.75532618,937.62,936.18,1.5948419]
[1768372619321,0.75532618,937.61,936.18,1.5948419]
[1768372619519,0.75532618,937.6,936.18,1.5948419]
[1768372619718,0.75532618,937.59,936.18,1.5948419]
[1768372619919,0.75532618,937.58,936.18,1.5948419]
[1768372620123,0.75381442,937.57,936.17,1.78046071]
[1768372620323,0.01045683,938.55,936.27,1.5948419]
[1768372620522,0.75379634,938.54,936.27,1.5948419]
[1768372620724,0.75379634,938.53,936.27,1.5948419]
[1768372620922,0.75379634,938.52,936.27,1.5948419]
[1768372621220,0.75379634,938.51,936.27,1.5948419]
[1768372621422,0.75379634,938.5,936.27,1.5948419]
[1768372621625,0.75379634,938.49,936.27,1.5948419]
[1768372621822,0.75379634,938.48,936.27,1.5948419]
[1768372622022,0.75379634,938.47,936.27,1.5948419]
[1768372622322,0.75379634,938.46,936.27,1.5948419]
[1768372622523,0.75379634,938.45,936.27,1.5948419]
[1768372622724,0.75379634,938.44,936.27,1.5948419]
[1768372622926,0.75379634,938.43,936.27,1.5948419]
[1768372623124,0.75379634,938.42,936.26,1.5948419]
[1768372623322,0.75379634,938.41,936.27,1.5948419]
[1768372623523,0.75379634,938.4,936.27,1.5948419]
[1768372623722,0.75379634,938.39,936.27,1.5948419]
[1768372623923,0.75379634,938.38,936.3,1.5948419]
[1768372624122,0.75379634,938.37,936.32,1.5948419]
[1768372624323,0.75379634,938.36,936.33,1.5948419]
[1768372624526,0.75379634,938.35,936.33,1.5948419]
[1768372624726,0.75379634,938.34,936.33,1.5948419]
[1768372624925,0.75379634,938.33,936.34,1.5948419]
[1768372625128,0.75379634,938.32,936.37,1.5948419]
[1768372625326,0.75379634,938.31,936.37,1.5948419]
[1768372625529,0.75379634,938.3,936.42,1.5948419]
[1768372625729,0.75379634,938.29,936.45,1.5948419]
[1768372625929,0.75379634,938.28,936.45,1.5948419]
[1768372626225,0.75379634,938.27,936.47,1.5948419]
[1768372626426,0.75379634,938.26,936.47,1.5948419]
[1768372626630,0.75379634,938.25,936.47,1.5948419]
[1768372626831,0.75379634,938.24,936.48,1.5948419]
[1768372627031,0.75379634,938.23,936.62,1.5948419]
[1768372627232,0.75379634,938.22,936.61,1.5948419]
[1768372627432,0.75379634,938.21,936.68,1.5948419]
[1768372627733,0.75379634,938.2,936.69,1.5948419]
[1768372627935,0.75379634,938.19,936.69,1.5948419]
[1768372628132,0.75379634,938.18,936.69,1.5948419]
[1768372628330,0.75379634,938.17,936.69,1.5948419]
[1768372628533,0.75379634,938.16,936.69,1.5948419]
[1768372628739,0.75379634,938.15,936.69,1.5948419]
[1768372628937,0.75379634,938.14,936.69,1.5948419]
[1768372629137,0.75379634,938.13,936.68,1.5948419]
[1768372629337,0.75379634,938.12,936.69,1.5948419]
[1768372629540,0.75379634,938.11,936.68,1.5948419]
[1768372629840,0.75379634,938.1,936.67,1.5948419]
[1768372630040,0.75379634,938.09,936.67,1.5948419]
[1768372630241,0.75379634,938.08,936.68,1.5948419]
[1768372630441,0.00873646,939.07,936.68,1.5948419]
[1768372630442,0.75379634,938.07,936.68,1.5948419]
[1768372630742,0.01153945,939.02,936.74,1.5948419]
[1768372630942,0.75401404,939.01,936.74,1.5948419]
[1768372631141,0.75401404,939.0,936.74,1.5948419]
[1768372631342,0.75401404,938.99,936.74,1.5948419]
[1768372631541,0.75401404,938.98,936.74,1.5948419]
[1768372631840,0.75401404,938.97,936.74,1.5948419]
[1768372632038,0.75401404,938.96,936.75,1.5948419]
[1768372632238,0.75401404,938.95,936.76,1.5948419]
[1768372632443,0.75401404,938.94,936.76,1.5948419]
[1768372632639,0.75401404,938.93,936.76,1.5948419]
[1768372632841,0.75401404,938.92,936.76,1.5948419]
[1768372633040,0.75401404,938.91,936.76,1.5948419]
[1768372633242,0.75401404,938.9,936.77,1.5948419]
[1768372633445,0.75401404,938.89,936.79,1.5948419]
[1768372633646,0.75401404,938.88,936.79,1.5948419]
[1768372633946,0.75401404,938.87,936.79,1.5948419]
[1768372634246,0.75401404,938.86,936.81,1.5948419]
[1768372634543,0.75401404,938.85,936.81,1.5948419]
[1768372634846,0.75401404,938.84,936.9,1.5948419]
[1768372635046,0.75401404,938.83,936.9,1.5948419]
[1768372635246,0.75401404,938.82,936.91,1.5948419]
[1768372635447,0.75401404,938.81,936.91,1.5948419]
[1768372635647,0.75401404,938.8,936.91,1.5948419]
[1768372635844,0.75401404,938.79,936.91,1.5948419]
[1768372636048,0.75401404,938.78,936.91,1.5948419]
[1768372636247,0.75401404,938.77,936.92,1.5948419]
[1768372636450,0.75401404,938.76,936.9,1.5948419]
[1768372636650,0.75401404,938.75,936.9,1.5948419]
[1768372636946,0.75401404,938.74,936.85,1.5948419]
[1768372637146,0.75401404,938.73,936.86,1.5948419]
[1768372637347,0.75401404,938.72,936.85,1.5948419]
[1768372637646,0.75401404,938.71,936.85,1.5948419]
[1768372637848,0.75401404,938.7,936.85,1.5948419]
[1768372638048,0.75401404,938.69,936.85,1.5948419]
[1768372638246,0.75401404,938.68,936.86,1.5948419]
[1768372638550,0.75401404,938.67,936.86,1.5948419]
[1768372638851,0.75401404,938.66,936.86,1.5948419]
[1768372639046,0.75401404,938.65,936.86,1.5948419]
[1768372639246,0.75401404,938.64,936.88,1.5948419]
[1768372639549,0.75401404,938.63,936.88,1.5948419]
[1768372639749,0.75401404,938.62,936.88,1.5948419]
[1768372639950,0.75401404,938.61,936.88,1.5948419]
[1768372640247,0.75401404,938.6,936.87,1.5948419]
[1768372640451,0.75401404,938.59,936.87,1.5948419]
[1768372640652,0.75401404,938.58,936.87,1.5948419]
[1768372640847,0.75401404,938.57,936.87,1.5948419]
[1768372641052,0.75401404,938.56,936.87,1.5948419]
[1768372641252,0.75401404,938.55,936.84,1.5948419]
[1768372641450,0.75401404,938.54,936.84,1.5948419]
[1768372641650,0.75401404,938.53,936.84,1.5948419]
[1768372641852,0.75401404,938.52,936.84,1.5948419]
[1768372642051,0.75401404,938.51,936.84,1.5948419]
[1768372642253,0.75401404,938.5,936.84,1.5948419]
[1768372642551,0.75401404,938.49,936.8,1.5948419]
[1768372642853,0.75401404,938.48,936.8,1.5948419]
[1768372643054,0.75401404,938.47,936.8,1.5948419]
[1768372643255,0.18540816,939.28,936.8,1.5948419]
[1768372643256,0.75401404,938.46,936.8,1.5948419]
[1768372643456,0.75401404,938.45,936.8,1.5948419]
[1768372643655,0.75401404,938.44,936.8,1.5948419]
[1768372643856,0.75401404,938.43,936.8,1.5948419]
[1768372644056,0.75401404,938.42,936.8,1.5948419]
[1768372644257,0.75401404,938.41,936.79,1.5948419]
[1768372644458,0.75401404,938.4,936.79,1.5948419]
[1768372644752,0.75401404,938.39,936.79,1.5948419]
[1768372644957,0.75401404,938.38,936.79,1.5948419]
[1768372645257,0.75401404,938.37,936.79,1.5948419]
[1768372645458,0.75401404,938.36,936.79,1.5948419]
[1768372645654,0.75401404,938.35,936.79,1.5948419]
[1768372645852,0.75401404,938.34,936.79,1.5948419]
[1768372646054,0.75401404,938.33,936.79,1.5948419]
[1768372646254,0.75401404,938.32,936.79,1.5948419]
[1768372646554,0.75401404,938.31,936.79,1.5948419]
[1768372646754,0.75401404,938.3,936.79,1.5948419]
[1768372646958,0.75401404,938.29,936.79,1.5948419]
[1768372647159,0.75401404,938.28,936.8,1.5948419]
[1768372647355,0.18540816,939.28,936.8,1.5948419]
[1768372647356,0.75401404,938.27,936.8,1.5948419]
[1768372647556,0.75401404,938.26,936.68,1.5948419]
[1768372647760,0.75401404,938.25,936.66,1.5948419]
[1768372647958,0.75401404,938.24,936.66,1.5948419]
[1768372648162,0.75401404,938.23,936.67,1.5948419]
[1768372648361,0.75401404,938.22,936.67,1.5948419]
[1768372648563,0.75401404,938.21,936.67,1.5948419]
[1768372648858,0.75401404,938.2,936.67,1.5948419]
[1768372649063,0.75401404,938.19,936.67,1.5948419]
[1768372649262,0.75401404,938.18,936.67,1.5948419]
[1768372649559,0.75401404,938.17,936.67,1.5948419]
[1768372649762,0.75401404,938.16,936.67,1.5948419]
[1768372650064,0.75401404,938.15,936.67,1.5948419]
[1768372650263,0.75401404,938.14,936.68,1.5948419]
[1768372650557,0.75401404,938.13,936.68,1.5948419]
[1768372650760,0.75401404,938.12,936.68,1.5948419]
[1768372650959,0.75401404,938.11,936.68,1.5948419]
[1768372651263,0.75401404,938.1,936.69,1.5948419]
[1768372651562,0.75401404,938.09,936.69,1.5948419]
[1768372651757,0.75401404,938.08,936.69,1.5948419]
[1768372651961,0.75401404,938.07,936.69,1.5948419]
[1768372652157,0.75401404,938.07,936.17,0.18561881]
[1768372652158,0.75401404,938.06,936.7,1.5948419]
[1768372652357,0.75401404,938.05,936.7,1.5948419]
[1768372652661,0.75401404,938.04,936.7,1.5948419]
[1768372652862,0.75401404,938.03,936.7,1.5948419]
[1768372653157,0.75401404,938.02,936.71,1.5948419]
[1768372653362,0.75401404,938.01,936.72,1.5948419]
[1768372653564,0.75401404,938.0,936.72,1.5948419]
[1768372653863,0.75401404,937.99,936.72,1.5948419]
[1768372654060,0.75401404,937.98,936.72,1.5948419]
[1768372654261,0.75401404,937.98,936.17,0.18561881]
[1768372654262,0.75401404,937.97,936.73,1.5948419]
[1768372654461,0.75401404,937.96,936.73,1.5948419]
[1768372654663,0.75401404,937.95,936.73,1.5948419]
[1768372654864,0.75401404,937.94,936.73,1.5948419]
[1768372655065,0.18540816,939.28,936.73,1.5948419]
[1768372655066,0.75401404,937.93,936.73,1.5948419]
[1768372655266,0.75401404,937.92,936.76,1.5948419]
[1768372655465,0.75401404,937.91,936.76,1.5948419]
[1768372655666,0.75401404,937.9,936.76,1.5948419]
[1768372655868,0.75401404,937.89,936.76,1.5948419]
[1768372656064,0.75401404,937.88,936.77,1.5948419]
[1768372656263,0.75401404,937.87,936.77,1.5948419]
[1768372656468,0.75401404,937.86,936.77,1.5948419]
[1768372656668,0.75401404,937.85,936.83,1.5948419]
[1768372656865,0.75401404,937.84,936.83,1.5948419]
[1768372657069,0.75401404,937.83,936.83,1.5948419]
[1768372657367,0.75401404,937.82,936.84,1.5948419]
[1768372657568,0.75401404,937.81,936.84,1.5948419]
[1768372657768,0.75401404,937.8,936.84,1.5948419]
[1768372657964,0.75401404,937.79,936.84,1.5948419]
[1768372658167,0.75401404,937.78,936.85,1.5948419]
[1768372658365,0.75401404,937.77,936.85,1.5948419]
[1768372658569,0.75401404,937.76,936.85,1.5948419]
[1768372658765,0.75401404,937.75,936.85,1.5948419]
[1768372659068,0.75401404,937.74,936.85,1.5948419]
[1768372659365,0.7574492,937.73,936.86,1.5948419]
[1768372659669,0.00766904,938.69,936.86,1.5948419]
[1768372659864,0.7574492,938.68,936.86,1.5948419]
[1768372660066,0.7574492,938.67,936.87,1.5948419]
[1768372660264,0.7574492,938.66,936.87,1.5948419]
[1768372660465,0.7574492,938.65,936.87,1.5948419]
[1768372660670,0.7574492,938.64,936.87,1.5948419]
[1768372660871,0.7574492,938.63,936.87,1.5948419]
[1768372661068,0.7574492,938.62,936.87,1.5948419]
[1768372661269,0.7574492,938.61,936.88,1.5948419]
[1768372661572,0.7574492,938.6,936.88,1.5948419]
[1768372661869,0.7574492,938.59,936.88,1.5948419]
[1768372662168,0.7574492,938.58,936.89,1.5948419]
[1768372662368,0.7574492,938.57,936.89,1.5948419]
[1768372662671,0.7574492,938.56,936.89,1.5948419]
[1768372662870,0.7574492,938.55,936.89,1.5948419]
[1768372663071,0.7574492,938.54,936.89,1.5948419]
[1768372663368,0.7574492,938.53,936.91,1.5948419]
[1768372663567,0.7574492,938.52,936.91,1.5948419]
[1768372663772,0.7574492,938.51,936.91,1.5948419]
[1768372663967,0.7574492,938.5,936.91,1.5948419]
[1768372664171,0.7574492,938.49,936.93,1.5948419]
[1768372664371,0.7574492,938.48,936.93,1.5948419]
[1768372664572,0.7574492,938.47,936.93,1.5948419]
[1768372664770,0.7574492,938.46,936.93,1.5948419]
[1768372664975,0.7574492,938.45,936.93,1.5948419]
[1768372665175,0.7574492,938.44,936.93,1.5948419]
[1768372665372,0.7574492,938.43,936.93,1.5948419]
[1768372665572,0.7574492,938.42,936.93,1.5948419]
[1768372665873,0.7574492,938.41,936.93,1.5948419]
[1768372666072,0.7574492,938.4,936.93,1.5948419]
[1768372666275,0.7574492,938.39,936.94,1.5948419]
[1768372666471,0.7574492,938.38,936.95,1.5948419]
[1768372666674,0.7574492,938.37,936.95,1.5948419]
[1768372666877,0.7574492,938.36,936.95,1.5948419]
[1768372667175,0.7574492,938.35,936.96,1.5948419]
[1768372667374,0.7574492,938.34,936.96,1.5948419]
[1768372667677,0.7574492,938.33,936.96,1.5948419]
[1768372667977,0.75943753,938.32,936.96,1.5948419]
[1768372668172,0.75943753,938.31,936.96,1.5948419]
[1768372668477,0.75943753,938.3,937.01,1.5948419]
[1768372668677,0.75943753,938.29,937.01,1.5948419]
[1768372668977,0.75943753,938.28,937.14,1.5948419]
[1768372669178,0.75943753,938.27,937.15,1.5948419]
[1768372669478,0.75943753,938.26,937.15,1.5948419]
[1768372669675,0.75943753,938.25,937.15,1.5948419]
[1768372669873,0.75943753,938.24,937.15,1.5948419]
[1768372670074,0.75943753,938.23,937.15,1.5948419]
[1768372670271,0.75943753,938.22,937.16,1.5948419]
[1768372670471,0.75943753,938.21,937.16,1.5948419]
[1768372670677,0.75943753,938.2,937.16,1.5948419]
[1768372670974,0.75943753,938.19,937.16,1.5948419]
[1768372671277,0.75943753,938.18,937.17,1.5948419]
[1768372671474,0.75943753,938.17,937.17,1.5948419]
[1768372671675,0.75943753,938.16,937.17,1.5948419]
[1768372671972,0.75943753,938.15,937.17,1.5948419]
[1768372672173,0.75943753,938.14,937.15,1.5948419]
[1768372672473,0.75943753,938.13,937.15,1.5948419]
[1768372672675,0.75943753,938.12,937.15,1.5948419]
[1768372672876,0.75943753,938.11,937.15,1.5948419]
[1768372673072,0.75943753,938.1,937.15,1.5948419]
[1768372673275,0.75943753,938.09,937.15,1.5948419]
[1768372673486,0.75943753,938.08,937.15,1.5948419]
[1768372673675,0.75943753,938.07,937.15,1.5948419]
[1768372673972,0.75943753,938.06,937.15,1.5948419]
[1768372674177,0.75943753,938.05,937.16,1.5948419]
[1768372674374,0.75943753,938.04,937.16,1.5948419]
[1768372674578,0.75943753,938.03,937.16,1.5948419]
[1768372674779,0.75943753,938.02,937.16,1.5948419]
[1768372674979,0.75943753,938.01,937.16,1.5948419]
[1768372675278,0.75943753,938.0,937.16,1.5948419]
[1768372675477,0.75943753,937.99,937.16,1.5948419]
[1768372675678,0.75943753,937.98,937.16,1.5948419]
[1768372675982,0.75943753,937.97,937.16,1.5948419]
[1768372676179,0.75943753,937.96,937.16,1.5948419]
[1768372676478,0.75943753,937.95,937.16,1.5948419]
[1768372676681,0.75943753,937.94,937.17,1.5948419]
[1768372676881,0.75943753,937.93,937.17,1.5948419]
[1768372677181,0.75943753,937.92,937.17,1.5948419]
[1768372677482,0.75943753,937.91,937.17,1.5948419]
[1768372677779,0.75943753,937.9,937.17,1.5948419]
[1768372678078,0.75943753,937.89,937.17,1.5948419]
[1768372678277,0.75943753,937.88,937.17,1.5948419]
[1768372678478,0.75943753,937.87,937.17,1.5948419]
[1768372678683,0.75943753,937.86,937.17,1.5948419]
[1768372678981,0.75943753,937.85,937.17,1.5948419]
[1768372679178,0.75943753,937.84,937.17,1.5948419]
[1768372679379,0.75943753,937.83,937.17,1.5948419]
[1768372679682,0.75943753,937.82,937.17,1.5948419]
[1768372679979,0.75943753,937.81,937.17,1.5948419]
[1768372680180,0.75943753,937.8,937.17,1.5948419]
[1768372680382,0.75943753,937.79,937.18,1.5948419]
[1768372680581,0.75943753,937.78,937.18,1.5948419]
[1768372680776,0.75943753,937.77,937.18,1.5948419]
[1768372680982,0.18540816,939.28,937.18,1.5948419]
[1768372680983,0.75943753,937.76,937.18,1.5948419]
[1768372681279,0.75943753,937.75,937.18,1.5948419]
[1768372681482,0.75943753,937.74,937.18,1.5948419]
[1768372681678,0.75943753,937.73,937.18,1.5948419]
[1768372681879,0.75943753,937.72,937.18,1.5948419]
[1768372682182,0.01049805,938.67,937.2,1.5948419]
[1768372682483,0.7605562,938.66,937.2,1.5948419]
[1768372682682,0.7605562,938.65,937.2,1.5948419]
[1768372682982,0.7605562,938.64,937.25,1.5948419]
[1768372683183,0.18540816,939.28,937.3,1.5948419]
[1768372683184,0.7605562,938.63,937.3,1.5948419]
[1768372683380,0.7605562,938.62,937.3,1.5948419]
[1768372683586,0.7605562,938.61,937.3,1.5948419]
[1768372683784,0.7605562,938.6,937.3,1.5948419]
[1768372684081,0.7605562,938.59,937.3,1.5948419]
[1768372684384,0.7605562,938.58,937.29,1.5948419]
[1768372684585,0.7605562,938.57,937.29,1.5948419]
[1768372684780,0.7605562,938.56,937.29,1.5948419]
[1768372684983,0.7605562,938.55,937.29,1.5948419]
[1768372685186,0.7605562,938.54,937.31,1.5948419]
[1768372685384,0.7605562,938.53,937.44,1.5948419]
[1768372685582,0.7605562,938.52,937.44,1.5948419]
[1768372685785,0.7605562,938.51,937.44,1.5948419]
[1768372685986,0.7605562,938.5,937.44,1.5948419]
[1768372686286,0.7605562,938.49,937.43,1.5948419]
[1768372686486,0.7605562,938.48,937.43,1.5948419]
[1768372686782,0.7605562,938.47,937.43,1.5948419]
[1768372686984,0.7605562,938.46,937.43,1.5948419]
[1768372687182,0.7605562,938.45,937.42,1.5948419]
[1768372687384,0.7605562,938.44,937.41,1.5948419]
[1768372687582,0.7605562,938.43,937.41,1.5948419]
[1768372687784,0.7605562,938.42,937.4,1.5948419]
[1768372688081,0.7605562,938.41,937.38,1.5948419]
[1768372688285,0.7605562,938.4,937.37,1.5948419]
[1768372688481,0.7605562,938.39,937.37,1.5948419]
[1768372688685,0.7605562,938.38,937.35,1.5948419]
[1768372688880,0.7605562,938.37,937.34,1.5948419]
[1768372689086,0.7605562,938.36,937.34,1.5948419]
[1768372689282,0.7605562,938.35,937.34,1.5948419]
[1768372689483,0.7605562,938.34,937.33,1.5948419]
[1768372689681,0.7605562,938.33,937.33,1.5948419]
[1768372689882,0.7605562,938.32,937.33,1.5948419]
[1768372690084,0.7605562,938.31,937.33,1.5948419]
[1768372690287,0.7605562,938.3,937.3,1.5948419]
[1768372690485,0.19457031,939.28,937.3,1.5948419]
[1768372690486,0.7605562,938.29,937.3,1.5948419]
[1768372690688,0.7605562,938.28,937.3,1.5948419]
[1768372690886,0.7605562,938.27,937.3,1.5948419]
[1768372691086,0.7605562,938.26,937.3,1.5948419]
[1768372691386,0.7605562,938.25,937.29,1.5948419]
[1768372691590,0.7605562,938.24,937.29,1.5948419]
[1768372691786,0.7605562,938.23,937.29,1.5948419]
[1768372691988,0.7605562,938.22,937.24,1.5948419]
[1768372692188,0.7605562,938.21,937.24,1.5948419]
[1768372692386,0.7605562,938.2,937.27,1.5948419]
[1768372692590,0.7605562,938.19,937.27,1.5948419]
[1768372692788,0.7605562,938.18,937.27,1.5948419]
[1768372692987,0.7605562,938.17,937.27,1.5948419]
[1768372693288,0.7605562,938.16,937.31,1.5948419]
[1768372693492,0.7605562,938.15,937.3,1.5948419]
[1768372693687,0.7605562,938.14,937.31,1.5948419]
[1768372693893,0.7605562,938.13,937.31,1.5948419]
[1768372694091,0.7605562,938.12,937.31,1.5948419]
[1768372694392,0.00975096,939.1,937.31,1.5948419]
[1768372694393,0.7605562,938.11,937.31,1.5948419]
[1768372694590,0.7605562,938.1,937.31,1.5948419]
[1768372694790,0.7605562,938.09,937.31,1.5948419]
[1768372695090,0.7605562,938.08,937.31,1.5948419]
[1768372695294,0.7605562,938.07,937.31,1.5948419]
[1768372695494,0.7605562,938.06,937.31,1.5948419]
[1768372695689,0.00977375,939.05,937.31,1.5948419]
[1768372695690,0.7605562,938.05,937.31,1.5948419]
[1768372695890,0.7605562,938.04,937.31,1.5948419]
[1768372696094,0.7605562,938.03,937.31,1.5948419]
[1768372696294,0.7605562,938.02,937.31,1.5948419]
[1768372696594,0.7605562,938.01,937.31,1.5948419]
[1768372696891,0.7605562,938.0,937.31,1.5948419]
[1768372697088,0.01192046,938.96,937.31,1.5948419]
[1768372697292,0.75473853,938.95,937.31,1.5948419]
[1768372697491,0.75473853,938.94,937.31,1.5948419]
[1768372697692,0.75473853,938.93,937.31,1.5948419]
[1768372697891,0.75473853,938.92,937.31,1.5948419]
[1768372698194,0.75473853,938.91,937.31,1.5948419]
[1768372698394,0.75473853,938.9,937.31,1.5948419]
[1768372698589,0.75473853,938.89,937.31,1.5948419]
[1768372698893,0.75473853,938.88,937.31,1.5948419]
[1768372699094,0.75473853,938.87,937.31,1.5948419]
[1768372699292,0.75473853,938.86,937.32,1.5948419]
[1768372699494,0.75473853,938.85,937.32,1.5948419]
[1768372699694,0.75473853,938.84,937.32,1.5948419]
[1768372699901,0.75473853,938.83,937.32,1.5948419]
[1768372700101,0.75473853,938.82,937.32,1.5948419]
[1768372700301,0.75473853,938.81,937.32,1.5948419]
[1768372700501,0.75473853,938.8,937.33,1.5948419]
[1768372700797,0.75473853,938.79,937.33,1.5948419]
[1768372701102,0.75473853,938.78,937.33,1.5948419]
[1768372701301,0.75473853,938.77,937.34,1.5948419]
[1768372701499,0.75473853,938.76,937.34,1.5948419]
[1768372701702,0.75473853,938.75,937.34,1.5948419]
[1768372701899,0.75473853,938.74,937.34,1.5948419]
[1768372702105,0.75473853,938.73,937.34,1.5948419]
[1768372702300,0.75473853,938.72,937.34,1.5948419]
[1768372702504,0.75473853,938.71,937.34,1.5948419]
[1768372702706,0.75473853,938.7,937.34,1.5948419]
[1768372702907,0.75473853,938.69,937.34,1.5948419]
[1768372703106,0.75473853,938.68,937.33,1.5948419]
[1768372703406,0.75473853,938.67,937.47,1.5948419]
[1768372703602,0.75473853,938.66,937.47,1.5948419]
[1768372703906,0.75473853,938.65,937.47,1.5948419]
[1768372704107,0.75473853,938.64,937.47,1.5948419]
[1768372704303,0.75473853,938.63,937.46,1.5948419]
[1768372704502,0.18540816,939.28,937.46,1.5948419]
[1768372704503,0.75473853,938.62,937.46,1.5948419]
[1768372704702,0.75473853,938.61,937.46,1.5948419]
[1768372704903,0.75473853,938.6,937.46,1.5948419]
[1768372705106,0.75473853,938.59,937.46,1.5948419]
[1768372705306,0.75473853,938.58,937.46,1.5948419]
[1768372705504,0.75473853,938.57,937.46,1.5948419]
[1768372705707,0.75473853,938.56,937.46,1.5948419]
[1768372706003,0.75473853,938.55,937.46,1.5948419]
[1768372706209,0.75473853,938.54,937.46,1.5948419]
[1768372706409,0.75473853,938.53,937.45,1.5948419]
[1768372706606,0.75473853,938.52,937.41,1.5948419]
[1768372706809,0.75473853,938.51,937.41,1.5948419]
[1768372707109,0.75473853,938.5,937.41,1.5948419]
[1768372707405,0.75473853,938.49,937.42,1.5948419]
[1768372707605,0.75473853,938.48,937.42,1.5948419]
[1768372707810,0.75473853,938.47,937.42,1.5948419]
[1768372708007,0.75473853,938.46,937.42,1.5948419]
[1768372708206,0.75473853,938.45,937.42,1.5948419]
[1768372708407,0.75473853,938.44,937.42,1.5948419]
[1768372708608,0.75473853,938.43,937.42,1.5948419]
[1768372708912,0.75473853,938.42,937.42,1.5948419]
[1768372709110,0.75473853,938.41,937.42,1.5948419]
[1768372709308,0.75473853,938.4,937.42,1.5948419]
[1768372709512,0.18540816,939.28,937.42,1.5948419]
[1768372709513,0.75473853,938.39,937.42,1.5948419]
[1768372709708,0.75473853,938.38,937.42,1.5948419]
[1768372709912,0.75473853,938.37,937.42,1.5948419]